[Event "Titled Tuesday Blitz May 23 Late 2023"]
[White "Perez, Maximiliano"]
[Black "Adla, Diego"]
[WhiteFideId "117234"]
[BlackFideId "100072"]
[WhiteElo "2344"]
[BlackElo "2377"]
[Result "1-0"]
[Round "11"]
[TimeControl "180+2"]
[Date "2023.05.23"]
[WhiteClock "0:01:15"]
[BlackClock "0:00:13"]

1. e4 {[%clk 0:03:00]}  e5 {[%clk 0:03:00]} 2. Nf3 {[%clk 0:02:59]}  Nc6 {[%clk 0:03:00]} 3. Bc4 {[%clk 0:03:00]}  Nf6 {[%clk 0:02:59]} 4. d3 {[%clk 0:03:00]}  Bc5 {[%clk 0:02:59]} 5. O-O {[%clk 0:02:59]}  O-O {[%clk 0:02:59]} 6. Re1 {[%clk 0:02:56]}  d6 {[%clk 0:02:57]} 7. c3 {[%clk 0:02:51]}  a5 {[%clk 0:02:55]} 8. h3 {[%clk 0:02:50]}  h6 {[%clk 0:02:55]} 9. Nbd2 {[%clk 0:02:49]}  Be6 {[%clk 0:02:55]} 10. Bb5 {[%clk 0:02:48]}  Ne7 {[%clk 0:02:50]} 11. d4 {[%clk 0:02:46]}  Ba7 {[%clk 0:02:50]} 12. dxe5 {[%clk 0:02:43]}  dxe5 {[%clk 0:02:51]} 13. Nxe5 {[%clk 0:02:39]}  Ng6 {[%clk 0:02:51]} 14. Nxg6 {[%clk 0:02:20]}  fxg6 {[%clk 0:02:51]} 15. Qe2 {[%clk 0:02:15]}  Kh7 {[%clk 0:02:47]} 16. Nf3 {[%clk 0:02:10]}  Nh5 {[%clk 0:02:42]} 17. Bd3 {[%clk 0:02:07]}  Qf6 {[%clk 0:02:36]} 18. e5 {[%clk 0:02:07]}  Qf7 {[%clk 0:02:36]} 19. Be3 {[%clk 0:02:05]}  Nf4 {[%clk 0:02:35]} 20. Bxf4 {[%clk 0:02:03]}  Qxf4 {[%clk 0:02:35]} 21. Qe4 {[%clk 0:02:01]}  Qxe4 {[%clk 0:02:32]} 22. Bxe4 {[%clk 0:02:01]}  c6 {[%clk 0:02:31]} 23. b3 {[%clk 0:01:59]}  a4 {[%clk 0:02:28]} 24. c4 {[%clk 0:01:58]}  Bc5 {[%clk 0:02:12]} 25. Rad1 {[%clk 0:01:55]}  axb3 {[%clk 0:02:09]} 26. axb3 {[%clk 0:01:56]}  Ra2 {[%clk 0:02:07]} 27. Rf1 {[%clk 0:01:55]}  Rf4 {[%clk 0:02:03]} 28. Bb1 {[%clk 0:01:53]}  Rb2 {[%clk 0:02:02]} 29. Rd3 {[%clk 0:01:46]}  Bf5 {[%clk 0:01:58]} 30. Rdd1 {[%clk 0:01:40]}  Rxb3 {[%clk 0:01:46]} 31. Bxf5 {[%clk 0:01:38]}  gxf5 {[%clk 0:01:46]} 32. Rde1 {[%clk 0:01:30]}  Be7 {[%clk 0:01:13]} 33. e6 {[%clk 0:01:26]}  Rb2 {[%clk 0:01:08]} 34. Ne5 {[%clk 0:01:21]}  Rd4 {[%clk 0:00:59]} 35. Rd1 {[%clk 0:01:17]}  Re4 {[%clk 0:00:47]} 36. Rfe1 {[%clk 0:01:17]}  Bc5 {[%clk 0:00:13]} 37. Nd3 {[%clk 0:01:15]} 1-0


[Site "https://www.chess.com"]

[Event "Titled Tuesday Blitz May 23 Late 2023"]
[White "cryptoguru02"]
[Black "Rodriguez, Santiago"]
[BlackFideId "3000591"]
[WhiteElo "2561"]
[BlackElo "2249"]
[Result "1/2-1/2"]
[Round "11"]
[TimeControl "180+2"]
[Date "2023.05.23"]
[WhiteClock "0:00:31"]
[BlackClock "0:00:09"]

1. d4 {[%clk 0:03:00]}  Nf6 {[%clk 0:02:59]} 2. c4 {[%clk 0:03:00]}  e6 {[%clk 0:02:59]} 3. Nc3 {[%clk 0:02:59]}  Bb4 {[%clk 0:02:59]} 4. Qc2 {[%clk 0:03:00]}  O-O {[%clk 0:02:57]} 5. Nf3 {[%clk 0:02:59]}  c5 {[%clk 0:02:55]} 6. dxc5 {[%clk 0:02:58]}  Nc6 {[%clk 0:02:53]} 7. a3 {[%clk 0:02:51]}  Bxc5 {[%clk 0:02:53]} 8. b4 {[%clk 0:02:48]}  Nd4 {[%clk 0:02:53]} 9. Nxd4 {[%clk 0:02:46]}  Bxd4 {[%clk 0:02:54]} 10. e3 {[%clk 0:02:46]}  Bb6 {[%clk 0:02:53]} 11. Bd3 {[%clk 0:02:41]}  d6 {[%clk 0:02:43]} 12. O-O {[%clk 0:02:40]}  Qe7 {[%clk 0:02:43]} 13. Bb2 {[%clk 0:02:35]}  Bd7 {[%clk 0:02:43]} 14. Rfd1 {[%clk 0:02:34]}  Rac8 {[%clk 0:02:42]} 15. Rac1 {[%clk 0:02:31]}  h6 {[%clk 0:02:42]} 16. h3 {[%clk 0:02:27]}  a6 {[%clk 0:02:41]} 17. Ne4 {[%clk 0:02:22]}  Nxe4 {[%clk 0:02:39]} 18. Bxe4 {[%clk 0:02:23]}  d5 {[%clk 0:02:35]} 19. Bd3 {[%clk 0:02:22]}  dxc4 {[%clk 0:02:32]} 20. Bxc4 {[%clk 0:02:22]}  Bb5 {[%clk 0:02:28]} 21. Qb3 {[%clk 0:02:12]}  Bxc4 {[%clk 0:02:21]} 22. Rxc4 {[%clk 0:02:12]}  Rxc4 {[%clk 0:02:20]} 23. Qxc4 {[%clk 0:02:13]}  Rd8 {[%clk 0:02:19]} 24. Rc1 {[%clk 0:02:10]}  Qd6 {[%clk 0:02:13]} 25. Qg4 {[%clk 0:02:06]}  e5 {[%clk 0:01:44]} 26. Rc8 {[%clk 0:01:50]}  g6 {[%clk 0:01:11]} 27. Rxd8+ {[%clk 0:01:45]}  Qxd8 {[%clk 0:01:10]} 28. Bxe5 {[%clk 0:01:43]}  Qd5 {[%clk 0:01:09]} 29. Qf4 {[%clk 0:01:36]}  Bd8 {[%clk 0:01:05]} 30. Bd4 {[%clk 0:01:33]}  Kh7 {[%clk 0:00:40]} 31. a4 {[%clk 0:01:23]}  b5 {[%clk 0:00:38]} 32. axb5 {[%clk 0:01:21]}  axb5 {[%clk 0:00:38]} 33. Qb8 {[%clk 0:01:19]}  g5 {[%clk 0:00:31]} 34. g3 {[%clk 0:01:15]}  Kg6 {[%clk 0:00:31]} 35. Qc8 {[%clk 0:01:03]}  h5 {[%clk 0:00:29]} 36. Qc2+ {[%clk 0:00:59]}  Qf5 {[%clk 0:00:23]} 37. Qxf5+ {[%clk 0:00:53]}  Kxf5 {[%clk 0:00:24]} 38. f3 {[%clk 0:00:51]}  Be7 {[%clk 0:00:17]} 39. Bc3 {[%clk 0:00:51]}  Ke6 {[%clk 0:00:14]} 40. e4 {[%clk 0:00:50]}  f5 {[%clk 0:00:14]} 41. exf5+ {[%clk 0:00:42]}  Kxf5 {[%clk 0:00:14]} 42. Kf2 {[%clk 0:00:42]}  Ke6 {[%clk 0:00:12]} 43. g4 {[%clk 0:00:36]}  hxg4 {[%clk 0:00:11]} 44. hxg4 {[%clk 0:00:34]}  Kd5 {[%clk 0:00:11]} 45. Ke3 {[%clk 0:00:32]}  Kc4 {[%clk 0:00:12]} 46. Be1 {[%clk 0:00:30]}  Bxb4 {[%clk 0:00:06]} 47. Bxb4 {[%clk 0:00:29]}  Kxb4 {[%clk 0:00:07]} 48. f4 {[%clk 0:00:30]}  gxf4+ {[%clk 0:00:07]} 49. Kxf4 {[%clk 0:00:30]}  Kc3 {[%clk 0:00:07]} 50. g5 {[%clk 0:00:30]}  b4 {[%clk 0:00:07]} 51. g6 {[%clk 0:00:31]}  b3 {[%clk 0:00:08]} 52. g7 {[%clk 0:00:32]}  b2 {[%clk 0:00:09]} 53. g8=Q {[%clk 0:00:33]}  b1=Q {[%clk 0:00:09]} 54. Qc8+ {[%clk 0:00:31]}  Kb2 {[%clk 0:00:09]} 55. Qb7+ {[%clk 0:00:30]}  Kc1 {[%clk 0:00:09]} 56. Qxb1+ {[%clk 0:00:31]}  Kxb1 {[%clk 0:00:09]} 1/2-1/2


[Site "https://www.chess.com"]

[Event "Titled Tuesday Blitz May 23 Late 2023"]
[White "Hambleton, Aman"]
[Black "Mazurkiewicz, Michal"]
[WhiteFideId "2606577"]
[BlackFideId "1124943"]
[WhiteElo "2511"]
[BlackElo "2054"]
[Result "1-0"]
[Round "11"]
[TimeControl "180+2"]
[Date "2023.05.23"]
[WhiteClock "0:00:09"]
[BlackClock "0:00:04"]

1. d4 {[%clk 0:03:00]}  Nf6 {[%clk 0:02:59]} 2. Bf4 {[%clk 0:03:01]}  g6 {[%clk 0:02:56]} 3. Nc3 {[%clk 0:03:00]}  d5 {[%clk 0:02:57]} 4. e3 {[%clk 0:03:00]}  Bg7 {[%clk 0:02:57]} 5. h4 {[%clk 0:03:01]}  h6 {[%clk 0:02:56]} 6. Nf3 {[%clk 0:03:01]}  O-O {[%clk 0:02:56]} 7. Ne5 {[%clk 0:03:02]}  Nbd7 {[%clk 0:02:51]} 8. Be2 {[%clk 0:03:01]}  Nxe5 {[%clk 0:02:46]} 9. Bxe5 {[%clk 0:03:02]}  c6 {[%clk 0:02:44]} 10. g4 {[%clk 0:03:01]}  Qb6 {[%clk 0:02:40]} 11. a3 {[%clk 0:03:01]}  a5 {[%clk 0:02:34]} 12. f4 {[%clk 0:02:38]}  a4 {[%clk 0:02:28]} 13. Rb1 {[%clk 0:02:32]}  Qa5 {[%clk 0:01:59]} 14. Kf2 {[%clk 0:02:32]}  Nxg4+ {[%clk 0:00:17]} 15. Bxg4 {[%clk 0:02:25]}  f6 {[%clk 0:00:17]} 16. Bxc8 {[%clk 0:01:49]}  Raxc8 {[%clk 0:00:18]} 17. Kg2 {[%clk 0:01:50]}  fxe5 {[%clk 0:00:18]} 18. fxe5 {[%clk 0:01:51]}  Rf5 {[%clk 0:00:13]} 19. Rf1 {[%clk 0:01:43]}  Rcf8 {[%clk 0:00:13]} 20. Rxf5 {[%clk 0:01:43]}  Rxf5 {[%clk 0:00:14]} 21. Ne2 {[%clk 0:01:39]}  e6 {[%clk 0:00:09]} 22. Ng3 {[%clk 0:01:32]}  Rf7 {[%clk 0:00:08]} 23. c3 {[%clk 0:01:29]}  Qd8 {[%clk 0:00:04]} 24. Qg4 {[%clk 0:01:28]}  Qe8 {[%clk 0:00:05]} 25. h5 {[%clk 0:01:23]}  g5 {[%clk 0:00:04]} 26. Ne2 {[%clk 0:00:14]}  Rf5 {[%clk 0:00:04]} 27. Ng3 {[%clk 0:00:06]}  Rf7 {[%clk 0:00:04]} 28. Rf1 {[%clk 0:00:07]}  Bf8 {[%clk 0:00:04]} 29. e4 {[%clk 0:00:04]}  c5 {[%clk 0:00:03]} 30. exd5 {[%clk 0:00:03]}  exd5 {[%clk 0:00:03]} 31. Rxf7 {[%clk 0:00:03]}  Qxf7 {[%clk 0:00:04]} 32. Nf5 {[%clk 0:00:02]}  c4 {[%clk 0:00:03]} 33. Qf3 {[%clk 0:00:02]}  b5 {[%clk 0:00:04]} 34. Kh3 {[%clk 0:00:02]}  Qe6 {[%clk 0:00:03]} 35. Qg4 {[%clk 0:00:02]}  Kh7 {[%clk 0:00:03]} 36. Kg3 {[%clk 0:00:02]}  Qf7 {[%clk 0:00:03]} 37. Kg2 {[%clk 0:00:02]}  Qe6 {[%clk 0:00:03]} 38. Ne3 {[%clk 0:00:02]}  Qxg4+ {[%clk 0:00:02]} 39. Nxg4 {[%clk 0:00:03]}  b4 {[%clk 0:00:03]} 40. axb4 {[%clk 0:00:02]}  Bxb4 {[%clk 0:00:04]} 41. cxb4 {[%clk 0:00:03]}  c3 {[%clk 0:00:04]} 42. bxc3 {[%clk 0:00:03]}  a3 {[%clk 0:00:04]} 43. Ne3 {[%clk 0:00:04]}  a2 {[%clk 0:00:05]} 44. Nc2 {[%clk 0:00:05]}  Kg7 {[%clk 0:00:04]} 45. Kf3 {[%clk 0:00:05]}  Kf7 {[%clk 0:00:05]} 46. Kg4 {[%clk 0:00:05]}  Ke6 {[%clk 0:00:05]} 47. b5 {[%clk 0:00:06]}  Kd7 {[%clk 0:00:06]} 48. Kf5 {[%clk 0:00:06]}  Kc7 {[%clk 0:00:06]} 49. e6 {[%clk 0:00:07]}  Kd6 {[%clk 0:00:06]} 50. b6 {[%clk 0:00:07]}  Kc6 {[%clk 0:00:06]} 51. e7 {[%clk 0:00:08]}  Kxb6 {[%clk 0:00:07]} 52. Na1 {[%clk 0:00:08]}  g4 {[%clk 0:00:07]} 53. Kxg4 {[%clk 0:00:09]}  Kc6 {[%clk 0:00:07]} 54. e8=Q+ {[%clk 0:00:09]}  Kb6 {[%clk 0:00:08]} 55. Qa4 {[%clk 0:00:09]}  Kc7 {[%clk 0:00:04]} 56. Qa6 {[%clk 0:00:09]} 1-0


[Site "https://www.chess.com"]

[Event "Titled Tuesday Blitz May 23 Late 2023"]
[White "Kielinkei"]
[Black "Weetik, Vjacheslav"]
[BlackFideId "4153472"]
[WhiteElo "2460"]
[BlackElo "2469"]
[Result "1-0"]
[Round "11"]
[TimeControl "180+2"]
[Date "2023.05.23"]
[WhiteClock "0:00:08"]
[BlackClock "0:00:13"]

1. e4 {[%clk 0:03:00]}  c6 {[%clk 0:03:00]} 2. d4 {[%clk 0:03:00]}  d5 {[%clk 0:03:00]} 3. Nc3 {[%clk 0:03:01]}  dxe4 {[%clk 0:03:01]} 4. Nxe4 {[%clk 0:03:01]}  Bf5 {[%clk 0:03:01]} 5. Qf3 {[%clk 0:02:58]}  e6 {[%clk 0:03:00]} 6. c3 {[%clk 0:02:57]}  Nd7 {[%clk 0:02:58]} 7. Ne2 {[%clk 0:02:55]}  Ngf6 {[%clk 0:02:56]} 8. N2g3 {[%clk 0:02:56]}  Bg6 {[%clk 0:02:56]} 9. Bd3 {[%clk 0:02:53]}  Be7 {[%clk 0:02:56]} 10. O-O {[%clk 0:02:50]}  O-O {[%clk 0:02:56]} 11. Re1 {[%clk 0:02:46]}  c5 {[%clk 0:02:45]} 12. Nxf6+ {[%clk 0:02:40]}  Nxf6 {[%clk 0:02:45]} 13. Bxg6 {[%clk 0:02:39]}  hxg6 {[%clk 0:02:45]} 14. dxc5 {[%clk 0:02:33]}  Bxc5 {[%clk 0:02:45]} 15. Be3 {[%clk 0:02:19]}  Bxe3 {[%clk 0:02:40]} 16. Qxe3 {[%clk 0:02:19]}  Qc7 {[%clk 0:02:33]} 17. Rad1 {[%clk 0:02:16]}  Rfd8 {[%clk 0:02:31]} 18. Ne4 {[%clk 0:02:11]}  Qa5 {[%clk 0:02:26]} 19. Nxf6+ {[%clk 0:02:05]}  gxf6 {[%clk 0:02:26]} 20. a3 {[%clk 0:02:04]}  Kg7 {[%clk 0:02:25]} 21. Qe2 {[%clk 0:01:56]}  Qb6 {[%clk 0:02:16]} 22. b4 {[%clk 0:01:43]}  Rxd1 {[%clk 0:02:05]} 23. Rxd1 {[%clk 0:01:42]}  Rc8 {[%clk 0:02:06]} 24. Qd3 {[%clk 0:01:21]}  Qc6 {[%clk 0:01:59]} 25. Rc1 {[%clk 0:01:20]}  b5 {[%clk 0:01:59]} 26. h3 {[%clk 0:01:20]}  a6 {[%clk 0:01:58]} 27. Qd4 {[%clk 0:01:17]}  Rc7 {[%clk 0:01:57]} 28. Qd3 {[%clk 0:01:15]}  e5 {[%clk 0:01:57]} 29. Qe3 {[%clk 0:01:12]}  Rd7 {[%clk 0:01:49]} 30. Qe2 {[%clk 0:01:11]}  Rc7 {[%clk 0:01:45]} 31. Qd3 {[%clk 0:01:09]}  Qe6 {[%clk 0:01:37]} 32. Qc2 {[%clk 0:01:03]}  Qc4 {[%clk 0:01:35]} 33. Qb2 {[%clk 0:00:58]}  Rd7 {[%clk 0:01:34]} 34. Qc2 {[%clk 0:00:56]}  Rd3 {[%clk 0:01:33]} 35. Qb2 {[%clk 0:00:47]}  e4 {[%clk 0:01:33]} 36. Qc2 {[%clk 0:00:44]}  Qd5 {[%clk 0:01:26]} 37. c4 {[%clk 0:00:24]}  Qd4 {[%clk 0:01:19]} 38. cxb5 {[%clk 0:00:20]}  Rd2 {[%clk 0:01:17]} 39. Qc5 {[%clk 0:00:20]}  Qb2 {[%clk 0:01:00]} 40. bxa6 {[%clk 0:00:18]}  Qxa3 {[%clk 0:01:00]} 41. Qc4 {[%clk 0:00:13]}  e3 {[%clk 0:00:44]} 42. fxe3 {[%clk 0:00:11]}  Qb2 {[%clk 0:00:45]} 43. Qc6 {[%clk 0:00:09]}  Qxb4 {[%clk 0:00:43]} 44. a7 {[%clk 0:00:07]}  Ra2 {[%clk 0:00:25]} 45. a8=Q {[%clk 0:00:07]}  Rxa8 {[%clk 0:00:24]} 46. Qxa8 {[%clk 0:00:08]}  Qd2 {[%clk 0:00:25]} 47. Qa1 {[%clk 0:00:06]}  Qxe3+ {[%clk 0:00:25]} 48. Kh1 {[%clk 0:00:06]}  Qb6 {[%clk 0:00:22]} 49. Rf1 {[%clk 0:00:06]}  Qe6 {[%clk 0:00:22]} 50. Qe1 {[%clk 0:00:07]}  Qd6 {[%clk 0:00:22]} 51. Qf2 {[%clk 0:00:07]}  Qe5 {[%clk 0:00:22]} 52. Qf4 {[%clk 0:00:08]}  Qe6 {[%clk 0:00:23]} 53. Qf3 {[%clk 0:00:08]}  Qe5 {[%clk 0:00:23]} 54. Qf4 {[%clk 0:00:08]}  Qe6 {[%clk 0:00:24]} 55. Qd2 {[%clk 0:00:09]}  Qe5 {[%clk 0:00:24]} 56. Re1 {[%clk 0:00:10]}  Qc5 {[%clk 0:00:23]} 57. Qe2 {[%clk 0:00:10]}  Qg5 {[%clk 0:00:23]} 58. Qe3 {[%clk 0:00:11]}  Qd5 {[%clk 0:00:23]} 59. Re2 {[%clk 0:00:11]}  Qd1+ {[%clk 0:00:23]} 60. Re1 {[%clk 0:00:12]}  Qd6 {[%clk 0:00:23]} 61. Rc1 {[%clk 0:00:12]}  Qd5 {[%clk 0:00:23]} 62. Qc5 {[%clk 0:00:12]}  Qd2 {[%clk 0:00:23]} 63. Qc2 {[%clk 0:00:13]}  Qf4 {[%clk 0:00:23]} 64. Rb1 {[%clk 0:00:13]}  Qg3 {[%clk 0:00:22]} 65. Qb3 {[%clk 0:00:12]}  Qf2 {[%clk 0:00:21]} 66. Qb2 {[%clk 0:00:12]}  Qf4 {[%clk 0:00:21]} 67. Qe2 {[%clk 0:00:12]}  Qd4 {[%clk 0:00:21]} 68. Rd1 {[%clk 0:00:12]}  Qf4 {[%clk 0:00:21]} 69. Qd2 {[%clk 0:00:13]}  Qe4 {[%clk 0:00:21]} 70. Qd8 {[%clk 0:00:12]}  Qe2 {[%clk 0:00:21]} 71. Qd3 {[%clk 0:00:12]}  Qe5 {[%clk 0:00:21]} 72. Rc1 {[%clk 0:00:12]}  Qf4 {[%clk 0:00:21]} 73. Qc4 {[%clk 0:00:12]}  Qd2 {[%clk 0:00:21]} 74. Qc8 {[%clk 0:00:13]}  Qf4 {[%clk 0:00:20]} 75. Rd1 {[%clk 0:00:12]}  g5 {[%clk 0:00:20]} 76. Rb1 {[%clk 0:00:10]}  Qe4 {[%clk 0:00:19]} 77. Qc1 {[%clk 0:00:06]}  g4 {[%clk 0:00:18]} 78. hxg4 {[%clk 0:00:04]}  Qxg4 {[%clk 0:00:19]} 79. Qe1 {[%clk 0:00:04]}  Qh5+ {[%clk 0:00:19]} 80. Kg1 {[%clk 0:00:05]}  Qc5+ {[%clk 0:00:19]} 81. Qf2 {[%clk 0:00:05]}  Qg5 {[%clk 0:00:18]} 82. Rf1 {[%clk 0:00:05]}  Qe5 {[%clk 0:00:17]} 83. Qf3 {[%clk 0:00:05]}  Qd4+ {[%clk 0:00:18]} 84. Kh1 {[%clk 0:00:05]}  Qh4+ {[%clk 0:00:18]} 85. Qh3 {[%clk 0:00:06]}  Qd4 {[%clk 0:00:19]} 86. Qg3+ {[%clk 0:00:06]}  Kf8 {[%clk 0:00:19]} 87. Qb8+ {[%clk 0:00:06]}  Kg7 {[%clk 0:00:19]} 88. Qf4 {[%clk 0:00:06]}  Qc3 {[%clk 0:00:18]} 89. Qg4+ {[%clk 0:00:06]}  Kf8 {[%clk 0:00:19]} 90. Qf3 {[%clk 0:00:06]}  Qc5 {[%clk 0:00:15]} 91. Qxf6 {[%clk 0:00:06]}  Qh5+ {[%clk 0:00:15]} 92. Kg1 {[%clk 0:00:07]}  Kg8 {[%clk 0:00:16]} 93. Qf3 {[%clk 0:00:06]}  Qc5+ {[%clk 0:00:16]} 94. Qf2 {[%clk 0:00:06]}  Qc4 {[%clk 0:00:17]} 95. Qg3+ {[%clk 0:00:06]}  Kf8 {[%clk 0:00:17]} 96. Qb8+ {[%clk 0:00:06]}  Kg7 {[%clk 0:00:17]} 97. Qb2+ {[%clk 0:00:07]}  Kg8 {[%clk 0:00:17]} 98. Qf6 {[%clk 0:00:06]}  Qc5+ {[%clk 0:00:17]} 99. Kh1 {[%clk 0:00:06]}  Qh5+ {[%clk 0:00:18]} 100. Kg1 {[%clk 0:00:06]}  Qc5+ {[%clk 0:00:19]} 101. Qf2 {[%clk 0:00:07]}  Qg5 {[%clk 0:00:18]} 102. Re1 {[%clk 0:00:08]}  Kg7 {[%clk 0:00:17]} 103. Qe3 {[%clk 0:00:08]}  Qg6 {[%clk 0:00:15]} 104. Qe5+ {[%clk 0:00:09]}  Kg8 {[%clk 0:00:15]} 105. Qb8+ {[%clk 0:00:08]}  Kg7 {[%clk 0:00:15]} 106. Qb2+ {[%clk 0:00:09]}  Kg8 {[%clk 0:00:15]} 107. Rc1 {[%clk 0:00:09]}  Qb6+ {[%clk 0:00:13]} 108. Qxb6 {[%clk 0:00:08]} 1-0


[Site "https://www.chess.com"]

[Event "Titled Tuesday Blitz May 23 Late 2023"]
[White "Wizard_of_Odds"]
[Black "Camilla_Lee"]
[WhiteElo "2446"]
[BlackElo "2634"]
[Result "0-1"]
[Round "11"]
[TimeControl "180+2"]
[Date "2023.05.23"]
[WhiteClock "0:00:01"]
[BlackClock "0:00:06"]

1. d4 {[%clk 0:02:58]}  Nf6 {[%clk 0:02:59]} 2. c4 {[%clk 0:02:58]}  g6 {[%clk 0:02:59]} 3. Nc3 {[%clk 0:02:58]}  d5 {[%clk 0:03:00]} 4. cxd5 {[%clk 0:02:58]}  Nxd5 {[%clk 0:03:01]} 5. Bd2 {[%clk 0:02:58]}  Bg7 {[%clk 0:02:58]} 6. e4 {[%clk 0:02:58]}  Nb6 {[%clk 0:02:55]} 7. Be3 {[%clk 0:02:58]}  O-O {[%clk 0:02:48]} 8. h3 {[%clk 0:02:57]}  Nc6 {[%clk 0:02:48]} 9. Nf3 {[%clk 0:02:57]}  e5 {[%clk 0:02:48]} 10. dxe5 {[%clk 0:02:41]}  Nxe5 {[%clk 0:02:45]} 11. Nxe5 {[%clk 0:02:38]}  Bxe5 {[%clk 0:02:46]} 12. Qxd8 {[%clk 0:02:30]}  Rxd8 {[%clk 0:02:47]} 13. f4 {[%clk 0:02:27]}  Bg7 {[%clk 0:02:45]} 14. g4 {[%clk 0:01:55]}  Be6 {[%clk 0:02:42]} 15. f5 {[%clk 0:01:55]}  Bc4 {[%clk 0:02:37]} 16. Bxb6 {[%clk 0:01:46]}  Bxf1 {[%clk 0:02:22]} 17. Bxc7 {[%clk 0:01:45]}  Rd7 {[%clk 0:02:08]} 18. Rxf1 {[%clk 0:01:41]}  Rxc7 {[%clk 0:02:08]} 19. Rf3 {[%clk 0:01:32]}  b5 {[%clk 0:01:55]} 20. f6 {[%clk 0:01:22]}  Bh6 {[%clk 0:01:53]} 21. Nxb5 {[%clk 0:01:17]}  Rc2 {[%clk 0:01:51]} 22. Rf2 {[%clk 0:01:15]}  Rc4 {[%clk 0:01:45]} 23. Nc3 {[%clk 0:01:11]}  Bg5 {[%clk 0:01:44]} 24. Ke2 {[%clk 0:01:07]}  Rd8 {[%clk 0:01:39]} 25. Rd1 {[%clk 0:01:04]}  Rb8 {[%clk 0:01:36]} 26. Kf3 {[%clk 0:00:56]}  Bxf6 {[%clk 0:01:33]} 27. Rd3 {[%clk 0:00:49]}  Kg7 {[%clk 0:01:13]} 28. Re2 {[%clk 0:00:43]}  Be5 {[%clk 0:01:12]} 29. h4 {[%clk 0:00:39]}  Rb6 {[%clk 0:00:50]} 30. g5 {[%clk 0:00:37]}  Re6 {[%clk 0:00:43]} 31. Nd5 {[%clk 0:00:34]}  h6 {[%clk 0:00:41]} 32. b3 {[%clk 0:00:32]}  Rc1 {[%clk 0:00:40]} 33. Kg2 {[%clk 0:00:24]}  Bd6 {[%clk 0:00:31]} 34. Rf3 {[%clk 0:00:21]}  hxg5 {[%clk 0:00:27]} 35. hxg5 {[%clk 0:00:21]}  Bc5 {[%clk 0:00:27]} 36. b4 {[%clk 0:00:10]}  Bd4 {[%clk 0:00:23]} 37. Rd3 {[%clk 0:00:08]}  Ba1 {[%clk 0:00:17]} 38. Rf3 {[%clk 0:00:08]}  Re5 {[%clk 0:00:17]} 39. Ref2 {[%clk 0:00:06]}  Rxg5+ {[%clk 0:00:17]} 40. Kh2 {[%clk 0:00:06]}  Be5+ {[%clk 0:00:17]} 41. Nf4 {[%clk 0:00:06]}  Rcg1 {[%clk 0:00:14]} 42. Rf1 {[%clk 0:00:06]}  R1g4 {[%clk 0:00:14]} 43. Kh3 {[%clk 0:00:05]}  Rg1 {[%clk 0:00:06]} 44. Kh2 {[%clk 0:00:04]}  Rxf1 {[%clk 0:00:05]} 45. Rxf1 {[%clk 0:00:05]}  Rg4 {[%clk 0:00:05]} 46. a4 {[%clk 0:00:04]}  Rxf4 {[%clk 0:00:04]} 47. Rxf4 {[%clk 0:00:04]}  Bxf4+ {[%clk 0:00:05]} 48. Kg2 {[%clk 0:00:04]}  Kf6 {[%clk 0:00:06]} 49. Kf3 {[%clk 0:00:05]}  Bd6 {[%clk 0:00:06]} 50. b5 {[%clk 0:00:04]}  Bc7 {[%clk 0:00:06]} 51. Kg4 {[%clk 0:00:03]}  Ke5 {[%clk 0:00:06]} 52. Kf3 {[%clk 0:00:04]}  f6 {[%clk 0:00:07]} 53. Ke3 {[%clk 0:00:04]}  Bb6+ {[%clk 0:00:06]} 54. Kf3 {[%clk 0:00:04]}  g5 {[%clk 0:00:06]} 55. a5 {[%clk 0:00:01]}  Bxa5 {[%clk 0:00:06]} 0-1


[Site "https://www.chess.com"]

[Event "Titled Tuesday Blitz May 23 Late 2023"]
[White "Schnaider, Ilan"]
[Black "Golubev, Mikhail"]
[WhiteFideId "169013"]
[BlackFideId "14100983"]
[WhiteElo "2224"]
[BlackElo "2374"]
[Result "0-1"]
[Round "11"]
[TimeControl "180+2"]
[Date "2023.05.23"]
[WhiteClock "0:00:05"]
[BlackClock "0:00:09"]

1. e4 {[%clk 0:03:00]}  c5 {[%clk 0:02:59]} 2. Nf3 {[%clk 0:03:00]}  d6 {[%clk 0:02:57]} 3. Bb5+ {[%clk 0:03:01]}  Nc6 {[%clk 0:02:55]} 4. O-O {[%clk 0:02:57]}  Bd7 {[%clk 0:02:55]} 5. Re1 {[%clk 0:02:54]}  Nf6 {[%clk 0:02:54]} 6. c3 {[%clk 0:02:54]}  a6 {[%clk 0:02:54]} 7. Ba4 {[%clk 0:02:50]}  b5 {[%clk 0:02:41]} 8. Bc2 {[%clk 0:02:48]}  Bg4 {[%clk 0:02:41]} 9. d3 {[%clk 0:02:31]}  e6 {[%clk 0:02:30]} 10. Bf4 {[%clk 0:02:26]}  Be7 {[%clk 0:02:25]} 11. Nbd2 {[%clk 0:02:25]}  O-O {[%clk 0:02:22]} 12. Nf1 {[%clk 0:02:22]}  Ne5 {[%clk 0:02:12]} 13. Bxe5 {[%clk 0:02:11]}  Bxf3 {[%clk 0:02:05]} 14. Qxf3 {[%clk 0:02:12]}  dxe5 {[%clk 0:02:06]} 15. Rad1 {[%clk 0:02:08]}  Qc7 {[%clk 0:02:02]} 16. Ng3 {[%clk 0:01:57]}  g6 {[%clk 0:01:58]} 17. Bb1 {[%clk 0:01:44]}  a5 {[%clk 0:01:51]} 18. d4 {[%clk 0:01:37]}  cxd4 {[%clk 0:01:43]} 19. cxd4 {[%clk 0:01:38]}  exd4 {[%clk 0:01:42]} 20. Rxd4 {[%clk 0:01:34]}  Qe5 {[%clk 0:01:37]} 21. Red1 {[%clk 0:01:11]}  Rfd8 {[%clk 0:01:24]} 22. Rxd8+ {[%clk 0:00:53]}  Rxd8 {[%clk 0:01:25]} 23. Rxd8+ {[%clk 0:00:49]}  Bxd8 {[%clk 0:01:26]} 24. Qe2 {[%clk 0:00:49]}  Bb6 {[%clk 0:01:17]} 25. Nf1 {[%clk 0:00:38]}  h5 {[%clk 0:01:04]} 26. h3 {[%clk 0:00:17]}  h4 {[%clk 0:01:02]} 27. b3 {[%clk 0:00:11]}  Nh5 {[%clk 0:00:57]} 28. Qg4 {[%clk 0:00:06]}  Ng3 {[%clk 0:00:51]} 29. Qf3 {[%clk 0:00:02]}  Nh5 {[%clk 0:00:26]} 30. Ne3 {[%clk 0:00:01]}  Qa1 {[%clk 0:00:15]} 31. Qd1 {[%clk 0:00:02]}  Bxe3 {[%clk 0:00:14]} 32. fxe3 {[%clk 0:00:03]}  Nf6 {[%clk 0:00:12]} 33. Qc2 {[%clk 0:00:02]}  Qe5 {[%clk 0:00:10]} 34. Qd3 {[%clk 0:00:02]}  Kg7 {[%clk 0:00:08]} 35. Bc2 {[%clk 0:00:02]}  b4 {[%clk 0:00:08]} 36. Qe2 {[%clk 0:00:03]}  Nh5 {[%clk 0:00:08]} 37. Qf3 {[%clk 0:00:02]}  Qg5 {[%clk 0:00:07]} 38. Bd1 {[%clk 0:00:02]}  Ng3 {[%clk 0:00:07]} 39. Kf2 {[%clk 0:00:02]}  Qe5 {[%clk 0:00:07]} 40. Bc2 {[%clk 0:00:01]}  Qb2 {[%clk 0:00:07]} 41. Qd1 {[%clk 0:00:02]}  Nxe4+ {[%clk 0:00:07]} 42. Ke2 {[%clk 0:00:01]}  Nc3+ {[%clk 0:00:07]} 43. Kd2 {[%clk 0:00:02]}  Nxd1 {[%clk 0:00:08]} 44. Kxd1 {[%clk 0:00:02]}  Qa1+ {[%clk 0:00:08]} 45. Kd2 {[%clk 0:00:03]}  Qc3+ {[%clk 0:00:08]} 46. Kd1 {[%clk 0:00:03]}  Qxe3 {[%clk 0:00:08]} 47. a3 {[%clk 0:00:04]}  Qd4+ {[%clk 0:00:09]} 48. Kc1 {[%clk 0:00:04]}  bxa3 {[%clk 0:00:09]} 49. Be4 {[%clk 0:00:04]}  a2 {[%clk 0:00:09]} 50. Bb1 {[%clk 0:00:05]}  a1=Q {[%clk 0:00:10]} 51. Kc2 {[%clk 0:00:05]}  Qac3# {[%clk 0:00:09]} 0-1


[Site "https://www.chess.com"]